fUSD/lending_fUSD_20240327
["ID","MTS","AMOUNT","RATE_DAILY","PERIOD"]
[320804807,1711561955594,-1363.26,0.00059452,120]
[320804808,1711561955604,-681.15,0.00059452,120]
[320804809,1711561955614,-1247.0,0.00059452,120]
[320804810,1711561955625,-828.0,0.00059452,120]
[320804811,1711561955635,-691.03,0.00059452,120]
[320804812,1711561955647,-907.95,0.00059452,120]
[320804813,1711561955658,-1943.45,0.00059452,120]
[320804814,1711561955668,-1363.72,0.00059452,120]
[320804815,1711561955678,-500.0,0.00059452,120]
[320804816,1711561955688,-1264.66,0.00059452,120]
[320804817,1711561955698,-518.11,0.00059452,120]
[320804818,1711561955708,-421.14758237,0.00059452,120]
[320804819,1711561955718,-785.6,0.00059452,120]
[320804820,1711561955728,-500.0,0.00059452,120]
[320804821,1711561955738,-533.96,0.00059452,120]
[320804822,1711561955749,-610.76,0.00059452,120]
[320804823,1711561955759,-601.27,0.00059452,120]
[320804824,1711561955769,-619.35,0.00059452,120]
[320804825,1711561955780,-723.32,0.00059452,120]
[320804826,1711561955791,-658.94,0.00059452,30]
[320804827,1711561955801,-604.53,0.00059452,120]
[320804828,1711561955811,-627.6,0.00059452,120]
[320804829,1711561955821,-541.49,0.00059452,120]
[320804830,1711561955832,-525.41,0.00059452,120]
[320804831,1711561955842,-1259.13,0.00059452,120]
[320804832,1711561955852,-500.0,0.00059452,120]
[320804833,1711561955862,-961.87,0.00059452,120]
[320804834,1711561955873,-1118.41,0.00059452,120]
[320804835,1711561955886,-1285.86,0.00059452,120]
[320804836,1711561955899,-653.33,0.00059452,120]
[320804837,1711561955910,-515.61,0.00059452,120]
[320804838,1711561955923,-881.34,0.00059452,120]
[320804839,1711561955935,-594.96,0.00059452,120]
[320804840,1711561955946,-635.55,0.00059452,120]
[320804841,1711561955961,-500.0,0.00059452,120]
[320804842,1711561955972,-569.07,0.00059452,120]
[320804843,1711561955983,-513.81,0.00059452,120]
[320804844,1711561955994,-885.2,0.00059452,120]
[320804845,1711561956006,-507.05,0.00059452,120]
[320804846,1711561956017,-345.9,0.00059452,120]
[320804847,1711561956029,-500.0,0.00059452,120]
[320804848,1711561956041,-969.37,0.00059452,120]
[320804849,1711561956052,-712.96,0.00059452,120]
[320804850,1711561956064,-500.0,0.00059452,120]
[320804851,1711561956076,-607.67,0.00059452,120]
[320804852,1711561956087,-419.46169494,0.00059452,120]
[320804853,1711561956098,-500.0,0.00059452,120]
[320804854,1711561956108,-572.09,0.00059452,120]
[320804855,1711561956120,-633.56,0.00059452,120]
[320804856,1711561956131,-1276.08,0.00059452,120]
[320804857,1711561956143,-743.04,0.00059452,120]
[320804858,1711561956160,-994.38,0.00059452,120]
[320804859,1711561956172,-1464.37,0.00059452,120]
[320804860,1711561956183,-1308.17,0.00059452,120]
[320804861,1711561956195,-1966.83,0.00059452,120]
[320804862,1711561956206,-1167.58,0.00059452,120]
[320804863,1711561956217,-882.23,0.00059452,120]
[320804864,1711561956228,-500.0,0.00059452,120]
[320804865,1711561956238,-939.99,0.00059452,120]
[320804866,1711561956249,-1680.42,0.00059452,120]
[320804867,1711561956259,-654.45,0.00059452,120]
[320804868,1711561956269,-1090.78,0.00059452,120]
[320804869,1711561956279,-5693.99,0.00059452,120]
[320804870,1711561956289,-2767.8,0.00059452,120]
[320804871,1711561956300,-631.11,0.00059452,120]
[320804872,1711561956311,-638.94,0.00059452,120]
[320804873,1711561956321,-1880.06,0.00059452,120]
[320804874,1711561956331,-3576.66,0.00059452,120]
[320804875,1711561956341,-1154.81,0.00059452,120]
[320804876,1711561956350,-597.69,0.00059452,120]
[320804877,1711561956360,-11680.99,0.00059452,120]
[320804878,1711561956370,-500.0,0.00059452,120]
[320804879,1711561956379,-473.67587084,0.00059452,120]
[320804880,1711561956389,-500.0,0.00059452,120]
[320804881,1711561956401,-820.32,0.00059452,120]
[320804882,1711561956410,-4891.01,0.00059452,120]
[320804883,1711561956420,-2266.19,0.00059452,120]
[320804884,1711561956429,-4319.88,0.00059452,120]
[320804885,1711561956438,-638.01,0.00059452,120]
[320804886,1711561956448,-1948.43,0.00059452,120]
[320804887,1711561956457,-594.89,0.00059452,120]
[320804888,1711561956467,-58191.63,0.00059452,120]
[320804889,1711561956477,-4872.06,0.00059452,120]
[320804890,1711561956487,-25819.15,0.00059452,120]
[320804891,1711561956496,-916.42,0.00059452,120]
[320804892,1711561956505,-672.12,0.00059452,120]
[320804893,1711561956514,-2822.64,0.00059452,120]
[320804894,1711561956524,-5739.01,0.00059452,120]
[320804895,1711561956534,-1773.91,0.00059452,120]
[320804896,1711561956544,-1599.36,0.00059452,120]
[320804897,1711561956554,-7896.21,0.00059452,120]
[320804898,1711561956564,-580.5,0.00059452,120]
[320804899,1711561956573,-702.31,0.00059452,120]
[320804900,1711561956582,-4077.6,0.00059452,120]
[320804901,1711561956591,-962.02,0.00059452,120]
[320804902,1711561956601,-1910.86,0.00059452,120]
[320804903,1711561956611,-1981.61,0.00059452,120]
[320804904,1711561956621,-993.68,0.00059452,120]
[320804905,1711561956631,-1310.9,0.00059452,120]
[320804906,1711561956641,-5861.79,0.00059452,120]
[320804907,1711561956653,-861.74,0.00059452,120]
[320804908,1711561956663,-3868.28,0.00059452,120]
[320804909,1711561956674,-4602.46,0.00059452,120]
[320804910,1711561956684,-2285.5,0.00059452,120]
[320804911,1711561956694,-2663.41,0.00059452,120]
[320804912,1711561956704,-7201.79,0.00059452,120]
[320804913,1711561956714,-1041.92,0.00059452,120]
[320804914,1711561956724,-2054.16,0.00059452,120]
[320804915,1711561956734,-18909.02,0.00059452,120]
[320804916,1711561956744,-1431.94,0.00059452,120]
[320804917,1711561956754,-1528.43,0.00059452,120]
[320804918,1711561956763,-1715.09,0.00059452,120]
[320804919,1711561956774,-543.42,0.00059452,120]
[320804920,1711561956783,-836.18,0.00059452,120]
[320804921,1711561956793,-2529.3,0.00059452,120]
[320804922,1711561956803,-1204.05,0.00059452,120]
[320804923,1711561956813,-882.15,0.00059452,120]
[320804924,1711561956823,-1890.07,0.00059452,120]
[320804925,1711561956834,-500.0,0.00059452,120]
[320804926,1711561956844,-1395.77,0.00059452,120]
[320804927,1711561956853,-22066.4,0.00059452,120]
[320804928,1711561956863,-9133.29,0.00059452,120]
[320804929,1711561956873,-3276.54,0.00059452,120]
[320804930,1711561956883,-3779.21,0.00059452,120]
[320804931,1711561956895,-1407.53,0.00059452,120]
[320804932,1711561956907,-505.39,0.00059452,120]
[320804933,1711561956917,-1780.21,0.00059452,120]
[320804934,1711561956926,-744.71,0.00059452,120]
[320804935,1711561956936,-3375.62,0.00059452,120]
[320804936,1711561956945,-500.0,0.00059452,120]
[320804937,1711561956955,-1245.33,0.00059452,120]
[320804938,1711561956965,-825.22,0.00059452,120]
[320804939,1711561956975,-2499.0,0.00059452,120]
[320804940,1711561957058,-1139.82,0.00059452,120]
[320804941,1711561957067,-3390.46,0.00059452,120]
[320804942,1711561957077,-2297.82,0.00059452,120]
[320804943,1711561957086,-36215.98,0.00059452,120]
[320804944,1711561957096,-2115.9,0.00059452,120]
[320804945,1711561957105,-504.0,0.00059452,120]
[320804946,1711561957115,-635.43,0.00059452,120]
[320804947,1711561957124,-509.72,0.00059452,7]
[320804948,1711561957133,-1985.21,0.00059452,120]
[320804949,1711561957143,-4093.44,0.00059452,120]
[320804950,1711561957156,-598.33,0.00059452,120]
[320804951,1711561957165,-3703.02,0.00059452,120]
[320804952,1711561957174,-3170.6,0.00059452,120]
[320804953,1711561957183,-4518.78,0.00059452,120]
[320804954,1711561957192,-816.34,0.00059452,120]
[320804955,1711561957201,-550.58,0.00059452,120]
[320804956,1711561957210,-5597.96,0.00059452,120]
[320804957,1711561957220,-3365.42,0.00059452,120]
[320804958,1711561957228,-1850.45,0.00059452,120]
[320804959,1711561957237,-543.16,0.00059452,120]
[320804960,1711561957247,-1437.25,0.00059452,120]
[320804961,1711561957256,-488.97,0.00059452,120]
[320804962,1711561957265,-13261.96,0.00059452,120]
[320804963,1711561957275,-2460.7,0.00059452,120]
[320804964,1711561957284,-688.55,0.00059452,120]
[320804965,1711561957294,-1308.22,0.00059452,120]
[320804966,1711561957303,-1655.41,0.00059452,120]
[320804967,1711561957312,-606.26,0.00059452,120]
[320804968,1711561957322,-3292.56,0.00059452,120]
[320804969,1711561957331,-2911.12,0.00059452,120]
[320804970,1711561957340,-4771.81,0.00059452,120]
[320804971,1711561957349,-1591.58,0.00059452,120]
[320804972,1711561957358,-8314.67,0.00059452,21]
[320804973,1711561957368,-515.6,0.00059452,120]
[320804974,1711561957377,-1246.89,0.00059452,120]
[320804975,1711561957386,-1689.16,0.00059452,120]
[320804976,1711561957395,-500.0,0.00059452,120]
[320804977,1711561957407,-770.25,0.00059452,120]
[320804978,1711561957416,-2319.97,0.00059452,120]
[320804979,1711561957425,-8380.88,0.00059452,120]
[320804980,1711561957434,-614.46,0.00059452,120]
[320804981,1711561957443,-2989.36,0.00059452,120]
[320804982,1711561957453,-521.47,0.00059452,120]
[320804983,1711561957462,-10959.62,0.00059452,120]
[320804984,1711561957472,-2645.1,0.00059452,120]
[320804985,1711561957481,-758.38,0.00059452,120]
[320804986,1711561957490,-12744.26,0.00059452,120]
[320804987,1711561957499,-500.0,0.00059452,120]
[320804988,1711561957508,-11517.5,0.00059452,120]
[320804989,1711561957517,-2628.59,0.00059452,120]
[320804990,1711561957526,-1981.45,0.00059452,120]
[320804991,1711561957535,-2618.9,0.00059452,120]
[320804992,1711561957545,-2635.65,0.00059452,120]
[320804993,1711561957553,-2440.72,0.00059452,120]
[320804994,1711561957563,-1641.2,0.00059452,120]
[320804995,1711561957572,-1422.66,0.00059452,120]
[320804996,1711561957582,-1953.26,0.00059452,120]
[320804997,1711561957591,-680.59,0.00059452,120]
[320804998,1711561957600,-851.11,0.00059452,120]
[320804999,1711561957609,-4524.02,0.00059452,120]
[320805000,1711561957619,-516.23,0.00059452,120]
[320805001,1711561957628,-833.36,0.00059452,120]
[320805002,1711561957637,-2147.51,0.00059452,120]
[320805003,1711561957646,-1200.4,0.00059452,120]
[320805004,1711561957657,-6977.94,0.00059452,120]
[320805005,1711561957667,-4994.03,0.00059452,120]
[320805006,1711561957677,-1826.97,0.00059452,120]
[320805007,1711561957686,-1042.58,0.00059452,120]
[320805008,1711561957696,-818.62,0.00059452,120]
[320805009,1711561957705,-1814.79,0.00059452,120]
[320805010,1711561957715,-1312.03,0.00059452,120]
[320805011,1711561957724,-1730.09,0.00059452,120]
[320805012,1711561957734,-3092.64,0.00059452,120]
[320805013,1711561957743,-3331.35,0.00059452,120]
[320805014,1711561957752,-1629.06,0.00059452,120]
[320805015,1711561957762,-1107.56,0.00059452,120]
[320805016,1711561957771,-858.06,0.00059452,120]
[320805017,1711561957780,-1926.96,0.00059452,120]
[320805018,1711561957789,-5998.21,0.00059452,120]
[320805019,1711561957798,-1276.61,0.00059452,120]
[320805020,1711561957807,-1204.74,0.00059452,120]
[320805021,1711561957816,-440.33016588,0.00059452,120]
[320805022,1711561957825,-978.47,0.00059452,120]
[320805023,1711561957835,-1112.11,0.00059452,120]
[320805024,1711561957844,-500.0,0.00059452,120]
[320805025,1711561957853,-5147.59,0.00059452,120]
[320805026,1711561957862,-1278.89,0.00059452,120]
[320805027,1711561957871,-327.0,0.00059483,30]
[320805028,1711561957884,-415.0,0.00059483,30]
[320805029,1711561957893,-1783.13173441,0.00059483,30]
[320805030,1711561957904,-466.20304152,0.00059483,30]
[320805031,1711561957915,-181.032721,0.00059498,117]
[320805032,1711561957925,-160.71817672,0.00059508,118]
[320805033,1711561957934,-150.19866873,0.00059509,80]
[320805034,1711561957944,-5056.51492563,0.00059517,120]
[320805035,1711561957953,-2297.87115028,0.00059517,120]
[320805036,1711561957964,-745.54344938,0.00059517,120]
[320805037,1711561957973,-2121.19438282,0.00059517,120]
[320805038,1711561957982,-160.81730332,0.00059518,120]
[320805039,1711561957992,-150.0,0.000596,13]
[320805040,1711561958002,-154.75091202,0.00059651,120]
[320805041,1711561958011,-9591.799595,0.00059656,30]
[320805042,1711561958020,-4795.899798,0.00059656,30]
[320805043,1711561958030,-4795.899797,0.00059656,30]
[320805044,1711561958039,-152.52,0.000597,9]
[320805045,1711561958049,-152.52,0.000597,9]
[320805046,1711561958058,-152.52,0.000597,9]
[320805047,1711561958068,-152.52,0.000597,9]
[320805048,1711561958077,-152.52,0.000597,9]
[320805049,1711561958087,-152.52,0.000597,9]
[320805050,1711561958096,-152.52,0.000597,9]
[320805051,1711561958106,-2146.54,0.000597,9]
[320805052,1711561958116,-2146.54,0.000597,9]
[320805053,1711561958126,-2146.54,0.000597,9]
[320805054,1711561958135,-2146.54,0.000597,9]
[320805055,1711561958145,-2146.54,0.000597,9]
[320805056,1711561958156,-2146.54,0.000597,9]
[320805057,1711561958166,-2146.54,0.000597,9]
[320805058,1711561958175,-2146.54,0.000597,9]
[320805059,1711561958185,-2146.54,0.000597,9]
[320805060,1711561958194,-2146.54,0.000597,9]
[320805061,1711561958203,-2146.54,0.000597,9]
[320805062,1711561958212,-2146.54,0.000597,9]
[320805063,1711561958221,-2146.54,0.000597,9]
[320805064,1711561958230,-2146.54,0.000597,9]
[320805065,1711561958240,-2146.54,0.000597,9]
[320805066,1711561958250,-2146.54,0.000597,9]
[320805067,1711561958259,-2146.54,0.000597,9]
[320805068,1711561958268,-2146.54,0.000597,9]
[320805069,1711561958277,-2146.54,0.000597,9]
[320805070,1711561958286,-2146.54,0.000597,9]
[320805071,1711561958295,-522.2,0.00059726,120]
[320805072,1711561958304,-500.0,0.00059726,120]
[320805073,1711561958313,-631.01,0.00059726,120]
[320805074,1711561958323,-324.1060029,0.00059726,120]
[320805075,1711561958332,-530.38,0.00059726,120]
[320805076,1711561958341,-517.87,0.00059726,120]
[320805077,1711561958350,-736.48,0.00059726,120]
[320805078,1711561958359,-500.0,0.00059726,120]
[320805079,1711561958369,-500.0,0.00059726,120]
[320805080,1711561958378,-827.53,0.00059726,120]
[320805081,1711561958387,-1149.15,0.00059726,120]
[320805082,1711561958396,-683.71,0.00059726,120]
[320805083,1711561958407,-588.63,0.00059726,120]
[320805084,1711561958416,-1653.05,0.00059726,120]
[320805085,1711561958425,-721.85,0.00059726,120]
[320805086,1711561958434,-1272.4,0.00059726,120]
[320805087,1711561958444,-758.1,0.00059726,120]
[320805088,1711561958453,-751.34,0.00059726,120]
[320805089,1711561958462,-1106.66,0.00059726,120]
[320805090,1711561958472,-667.72,0.00059726,120]
[320805091,1711561958481,-291.12238025,0.00059726,120]
[320805092,1711561958491,-546.53,0.00059726,120]
[320805093,1711561958500,-525.52,0.00059726,120]
[320805094,1711561958509,-1650.28,0.00059726,120]
[320805095,1711561958519,-1208.64,0.00059726,120]
[320805096,1711561958528,-1675.07,0.00059726,120]
[320805097,1711561958538,-500.0,0.00059726,60]
[320805098,1711561958548,-875.05,0.00059726,120]
[320805099,1711561958557,-896.37,0.00059726,120]
[320805100,1711561958567,-526.04,0.00059726,120]
[320805101,1711561958576,-774.53,0.00059726,120]
[320805102,1711561958585,-623.96,0.00059726,120]
[320805103,1711561958595,-1500.57,0.00059726,120]
[320805104,1711561958604,-191.28780154,0.00059726,120]
[320805105,1711561958614,-1293.46,0.00059726,120]
[320805106,1711561958623,-663.1,0.00059726,120]
[320805107,1711561958632,-591.57,0.00059726,120]
[320805108,1711561958642,-540.2,0.00059726,120]
[320805109,1711561958652,-826.04,0.00059726,120]
[320805110,1711561958662,-802.7,0.00059726,120]
[320805111,1711561958671,-551.8,0.00059726,120]
[320805112,1711561958681,-792.47,0.00059726,120]
[320805113,1711561958690,-507.03,0.00059726,120]
[320805114,1711561958700,-814.62,0.00059726,120]
[320805115,1711561958709,-519.12,0.00059726,120]
[320805116,1711561958720,-553.94,0.00059726,120]
[320805117,1711561958729,-1363.26,0.00059726,120]
[320805118,1711561958739,-681.15,0.00059726,120]
[320805119,1711561958749,-1247.0,0.00059726,120]
[320805120,1711561958759,-828.0,0.00059726,120]
[320805121,1711561958770,-691.03,0.00059726,120]
[320805122,1711561958779,-907.95,0.00059726,120]
[320805123,1711561958789,-1943.45,0.00059726,120]
[320805124,1711561958799,-1363.72,0.00059726,120]
[320805125,1711561958809,-500.0,0.00059726,120]
[320805126,1711561958819,-1264.66,0.00059726,120]
[320805127,1711561958829,-518.11,0.00059726,120]
[320805128,1711561958838,-785.6,0.00059726,120]
[320805129,1711561958849,-500.0,0.00059726,120]
[320805130,1711561958859,-533.96,0.00059726,120]
[320805131,1711561958869,-610.76,0.00059726,120]
[320805132,1711561958883,-601.27,0.00059726,120]
[320805133,1711561958893,-619.35,0.00059726,120]
[320805134,1711561958903,-723.32,0.00059726,120]
[320805135,1711561958912,-658.94,0.00059726,30]
[320805136,1711561958923,-604.53,0.00059726,120]
[320805137,1711561958933,-627.6,0.00059726,120]
[320805138,1711561958943,-541.49,0.00059726,120]
[320805139,1711561958952,-525.41,0.00059726,120]
[320805140,1711561958963,-1259.13,0.00059726,120]
[320805141,1711561958972,-500.0,0.00059726,120]
[320805142,1711561958982,-961.87,0.00059726,120]
[320805143,1711561958991,-1118.41,0.00059726,120]
[320805144,1711561959000,-1285.86,0.00059726,120]
[320805145,1711561959009,-653.33,0.00059726,120]
[320805146,1711561959019,-515.61,0.00059726,120]
[320805147,1711561959029,-881.34,0.00059726,120]
[320805148,1711561959039,-594.96,0.00059726,120]
[320805149,1711561959050,-635.55,0.00059726,120]
[320805150,1711561959059,-500.0,0.00059726,120]
[320805151,1711561959068,-569.07,0.00059726,120]
[320805152,1711561959079,-513.81,0.00059726,120]
[320805153,1711561959089,-885.2,0.00059726,120]
[320805154,1711561959099,-507.05,0.00059726,120]
[320805155,1711561959109,-345.9,0.00059726,120]
[320805156,1711561959120,-214.81702916,0.00059726,120]
[320805157,1711561959129,-969.37,0.00059726,120]
[320805158,1711561959138,-712.96,0.00059726,120]
[320805159,1711561959147,-500.0,0.00059726,120]
[320805160,1711561959157,-607.67,0.00059726,120]
[320805161,1711561959166,-631.34,0.00059726,120]
[320805162,1711561959176,-500.0,0.00059726,120]
[320805163,1711561959185,-572.09,0.00059726,120]
[320805164,1711561959195,-633.56,0.00059726,120]
[320805165,1711561959204,-1276.08,0.00059726,120]
[320805166,1711561959214,-743.04,0.00059726,120]
[320805167,1711561959223,-994.38,0.00059726,120]
[320805168,1711561959232,-1464.37,0.00059726,120]
[320805169,1711561959241,-1308.17,0.00059726,120]
[320805170,1711561959251,-1966.83,0.00059726,120]
[320805171,1711561959260,-1167.58,0.00059726,120]
[320805172,1711561959269,-882.23,0.00059726,120]
[320805173,1711561959279,-500.0,0.00059726,120]
[320805174,1711561959288,-939.99,0.00059726,120]
[320805175,1711561959297,-1680.42,0.00059726,120]
[320805176,1711561959307,-654.45,0.00059726,120]
[320805177,1711561959316,-1090.78,0.00059726,120]
[320805178,1711561959324,-5693.99,0.00059726,120]
[320805179,1711561959333,-2767.8,0.00059726,120]
[320805180,1711561959342,-631.11,0.00059726,120]
[320805181,1711561959351,-638.94,0.00059726,120]
[320805182,1711561959361,-1880.06,0.00059726,120]
[320805183,1711561959370,-1154.81,0.00059726,120]
[320805184,1711561959379,-3576.66,0.00059726,120]
[320805185,1711561959388,-597.69,0.00059726,120]
[320805186,1711561959397,-11680.99,0.00059726,120]
[320805187,1711561959408,-500.0,0.00059726,120]
[320805188,1711561959418,-314.82865046,0.00059726,120]
[320805189,1711561959427,-820.32,0.00059726,120]
[320805190,1711561959436,-4891.01,0.00059726,120]
[320805191,1711561959445,-2266.19,0.00059726,120]
[320805192,1711561959454,-4319.88,0.00059726,120]
[320805193,1711561959464,-638.01,0.00059726,120]
[320805194,1711561959476,-1948.43,0.00059726,120]
[320805195,1711561959486,-594.89,0.00059726,120]
[320805196,1711561959499,-58191.63,0.00059726,120]
[320805197,1711561959508,-4872.06,0.00059726,120]
[320805198,1711561959517,-25819.15,0.00059726,120]
[320805199,1711561959527,-916.42,0.00059726,120]
[320805200,1711561959536,-672.12,0.00059726,120]
[320805201,1711561959545,-2822.64,0.00059726,120]
[320805202,1711561959555,-5739.01,0.00059726,120]
[320805203,1711561959565,-1773.91,0.00059726,120]
[320805204,1711561959575,-7896.21,0.00059726,120]
[320805205,1711561959587,-1599.36,0.00059726,120]
[320805206,1711561959597,-580.5,0.00059726,120]
[320805207,1711561959606,-702.31,0.00059726,120]
[320805208,1711561959615,-4077.6,0.00059726,120]
[320805209,1711561959624,-962.02,0.00059726,120]
[320805210,1711561959633,-1910.86,0.00059726,120]
[320805211,1711561959643,-993.68,0.00059726,120]
[320805212,1711561959653,-1981.61,0.00059726,120]
[320805213,1711561959662,-1310.9,0.00059726,120]
[320805214,1711561959672,-5861.79,0.00059726,120]
[320805215,1711561959681,-861.74,0.00059726,120]
[320805216,1711561959691,-3868.28,0.00059726,120]
[320805217,1711561959701,-4602.46,0.00059726,120]
[320805218,1711561959711,-2285.5,0.00059726,120]
[320805219,1711561959720,-7201.79,0.00059726,120]
[320805220,1711561959729,-2663.41,0.00059726,120]
[320805221,1711561959738,-1041.92,0.00059726,120]
[320805222,1711561959747,-2054.16,0.00059726,120]
[320805223,1711561959756,-18909.02,0.00059726,120]
[320805224,1711561959765,-1431.94,0.00059726,120]
[320805225,1711561959774,-1528.43,0.00059726,120]
[320805226,1711561959783,-1715.09,0.00059726,120]
[320805227,1711561959792,-543.42,0.00059726,120]
[320805228,1711561959801,-836.18,0.00059726,120]
[320805229,1711561959810,-2529.3,0.00059726,120]
[320805230,1711561959819,-1204.05,0.00059726,120]
[320805231,1711561959830,-882.15,0.00059726,120]
[320805232,1711561959840,-1890.07,0.00059726,120]
[320805233,1711561959849,-500.0,0.00059726,120]
[320805234,1711561959858,-1395.77,0.00059726,120]
[320805235,1711561959867,-22066.4,0.00059726,120]
[320805236,1711561959877,-9133.29,0.00059726,120]
[320805237,1711561959886,-3276.54,0.00059726,120]
[320805238,1711561959898,-3779.21,0.00059726,120]
[320805239,1711561959907,-1407.53,0.00059726,120]
[320805240,1711561959917,-505.39,0.00059726,120]
[320805241,1711561959925,-1780.21,0.00059726,120]
[320805242,1711561959936,-744.71,0.00059726,120]
[320805243,1711561959945,-3375.62,0.00059726,120]
[320805244,1711561959954,-626.05459179,0.00059726,120]
[320805245,1711561959965,-1245.33,0.00059726,120]
[320805246,1711561959974,-825.22,0.00059726,120]
[320805247,1711561959983,-2499.0,0.00059726,120]
[320805248,1711561959993,-1139.82,0.00059726,120]
[320805249,1711561960002,-3390.46,0.00059726,120]
[320805250,1711561960011,-2297.82,0.00059726,120]
[320805251,1711561960020,-36215.98,0.00059726,120]
[320805252,1711561960029,-2115.9,0.00059726,120]
[320805253,1711561960038,-504.0,0.00059726,120]
[320805254,1711561960048,-635.43,0.00059726,120]
[320805255,1711561960058,-509.72,0.00059726,7]
[320805256,1711561960067,-1985.21,0.00059726,120]
[320805257,1711561960076,-4093.44,0.00059726,120]
[320805258,1711561960085,-598.33,0.00059726,120]
[320805259,1711561960094,-3703.02,0.00059726,120]
[320805260,1711561960103,-3170.6,0.00059726,120]
[320805261,1711561960112,-4518.78,0.00059726,120]
[320805262,1711561960121,-816.34,0.00059726,120]
[320805263,1711561960130,-550.58,0.00059726,120]
[320805264,1711561960140,-5597.96,0.00059726,120]
[320805265,1711561960148,-3365.42,0.00059726,120]
[320805266,1711561960158,-1850.45,0.00059726,120]
[320805267,1711561960167,-543.16,0.00059726,120]
[320805268,1711561960176,-1437.25,0.00059726,120]
[320805269,1711561960185,-13261.96,0.00059726,120]
[320805270,1711561960195,-2460.7,0.00059726,120]
[320805271,1711561960207,-688.55,0.00059726,120]
[320805272,1711561960216,-1308.22,0.00059726,120]
[320805273,1711561960225,-1655.41,0.00059726,120]
[320805274,1711561960234,-606.26,0.00059726,120]
[320805275,1711561960243,-3292.56,0.00059726,120]
[320805276,1711561960251,-2911.12,0.00059726,120]
[320805277,1711561960260,-4771.81,0.00059726,120]
[320805278,1711561960270,-1591.58,0.00059726,120]
[320805279,1711561960281,-8314.67,0.00059726,21]
[320805280,1711561960290,-515.6,0.00059726,120]
[320805281,1711561960299,-1246.89,0.00059726,120]
[320805282,1711561960309,-1689.16,0.00059726,120]
[320805283,1711561960318,-500.0,0.00059726,120]
[320805284,1711561960328,-770.25,0.00059726,120]
[320805285,1711561960338,-8380.88,0.00059726,120]
[320805286,1711561960347,-614.46,0.00059726,120]
[320805287,1711561960357,-2989.36,0.00059726,120]
[320805288,1711561960367,-521.47,0.00059726,120]
[320805289,1711561960376,-10959.62,0.00059726,120]
[320805290,1711561960387,-2645.1,0.00059726,120]
[320805291,1711561960397,-758.38,0.00059726,120]
[320805292,1711561960407,-12744.26,0.00059726,120]
[320805293,1711561960416,-500.0,0.00059726,120]
[320805294,1711561960426,-11517.5,0.00059726,120]
[320805295,1711561960435,-2628.59,0.00059726,120]
[320805296,1711561960444,-1981.45,0.00059726,120]
[320805297,1711561960453,-2618.9,0.00059726,120]
[320805298,1711561960463,-2635.65,0.00059726,120]
[320805299,1711561960472,-2440.72,0.00059726,120]
[320805300,1711561960481,-1641.2,0.00059726,120]
[320805301,1711561960490,-3000.0,0.00059726,120]
[320805302,1711561960499,-1422.66,0.00059726,120]
[320805303,1711561960509,-1953.26,0.00059726,120]
[320805304,1711561960518,-680.59,0.00059726,120]
[320805305,1711561960528,-851.11,0.00059726,120]
[320805306,1711561960537,-4524.02,0.00059726,120]